bitfinex/quotes_BTCUSD_20240826
["timestamp","ask_amount","ask_price","bid_price","bid_amount"]
[1724707633601,0.02636177,63111.0,63110.0,0.0893629]
[1724707633817,0.03866127,63111.0,63110.0,0.0893629]
[1724707634022,0.02636177,63111.0,63110.0,0.0893629]
[1724707634296,0.02636199,63111.0,63110.0,0.0893629]
[1724707634798,0.03866193,63111.0,63110.0,0.0893629]
[1724707635030,0.0386618,63111.0,63110.0,0.0893629]
[1724707635667,0.0386618,63111.0,63110.0,0.0923629]
[1724707635869,0.0263611,63111.0,63110.0,0.0913629]
[1724707636075,0.03966031,63111.0,63110.0,0.0913629]
[1724707636302,0.158458,63108.0,63106.0,0.000822]
[1724707636508,0.0263611,63107.0,63106.0,0.000822]
[1724707637127,0.1848221,63107.0,63106.0,0.000822]
[1724707637550,0.9204661,63107.0,63106.0,0.000822]
[1724707637853,0.93276536,63107.0,63106.0,0.000822]
[1724707638549,0.93276536,63107.0,63106.0,0.003822]
[1724707638550,1.24968736,63107.0,63106.0,0.003822]
[1724707638771,1.211027,63107.0,63106.0,0.006822]
[1724707638998,1.24968517,63107.0,63106.0,0.006822]
[1724707639196,1.24968517,63107.0,63106.0,0.003822]
[1724707639395,1.24968517,63107.0,63106.0,0.007822]
[1724707639944,1.24968517,63107.0,63106.0,0.003822]
[1724707640142,1.40786318,63107.0,63106.0,0.000822]
[1724707640370,1.54506318,63107.0,63106.0,0.000822]
[1724707641193,1.109262,63105.0,63104.0,0.000822]
[1724707641454,1.30409818,63105.0,63104.0,0.000822]
[1724707642134,1.30409471,63105.0,63104.0,0.000822]
[1724707642472,1.30909471,63105.0,63104.0,0.000822]
[1724707643508,1.35561393,63105.0,63104.0,0.000822]
[1724707643710,1.30909471,63105.0,63104.0,0.000822]
[1724707643918,1.35565975,63105.0,63104.0,0.000822]
[1724707644425,1.75372602,63105.0,63104.0,0.000822]
[1724707644890,1.37899188,63105.0,63104.0,0.000822]
[1724707645031,1.75372927,63105.0,63104.0,0.000822]
[1724707645246,1.75388638,63105.0,63104.0,0.000822]
[1724707645447,1.63667751,63105.0,63104.0,0.000822]
[1724707645651,1.77698609,63105.0,63104.0,0.000822]
[1724707645899,1.64897477,63105.0,63104.0,0.000822]
[1724707646072,1.67298509,63105.0,63104.0,0.000822]
[1724707646274,1.76622638,63105.0,63104.0,0.000822]
[1724707646480,1.67298509,63105.0,63104.0,0.000822]
[1724707647020,1.66068775,63105.0,63104.0,0.000822]
[1724707647444,1.77731081,63105.0,63104.0,0.000822]
[1724707647594,1.66068775,63105.0,63104.0,0.000822]
[1724707648207,1.66067846,63105.0,63104.0,0.000822]
[1724707648872,1.6489653,63105.0,63104.0,0.000822]
[1724707649048,1.66067782,63105.0,63104.0,0.000822]
[1724707649252,1.67531874,63105.0,63104.0,0.000822]
[1724707651264,0.475465,63096.0,63095.0,0.0069124]
[1724707651471,0.475465,63096.0,63089.0,0.003]
[1724707651472,0.158503,63090.0,63089.0,0.003]
[1724707651798,0.17314392,63090.0,63089.0,0.07109524]
[1724707651945,0.17314392,63090.0,63089.0,0.07786495]
[1724707651946,0.49015092,63090.0,63089.0,0.07786495]
[1724707652145,0.17314392,63090.0,63089.0,0.00976971]
[1724707652389,0.17314148,63090.0,63089.0,0.00976971]
[1724707652567,0.17314148,63090.0,63089.0,0.02276971]
[1724707652771,0.18485,63090.0,63089.0,0.02276971]
[1724707652970,0.17314148,63090.0,63089.0,0.02276971]
[1724707653290,0.17314148,63090.0,63089.0,0.04198078]
[1724707653697,0.17614148,63090.0,63089.0,0.04198078]
[1724707654456,0.18784729,63090.0,63089.0,0.04198078]
[1724707654755,0.18784729,63090.0,63089.0,0.00976971]
[1724707654974,0.50685429,63090.0,63089.0,0.00976971]
[1724707655998,0.18984174,63090.0,63089.0,0.00976971]
[1724707657082,0.18984174,63090.0,63089.0,0.01059271]
[1724707657288,0.18984174,63090.0,63089.0,0.00759271]
[1724707657686,0.18984174,63090.0,63089.0,0.01059271]
[1724707657904,0.18984174,63090.0,63089.0,0.00759271]
[1724707658121,0.50684874,63090.0,63089.0,0.01059271]
[1724707658926,0.48051,63090.0,63089.0,0.00759271]
[1724707659137,0.50684018,63090.0,63089.0,0.00759271]
[1724707659871,0.50684018,63090.0,63089.0,0.01059271]
[1724707660499,0.50684018,63090.0,63089.0,0.00759271]
[1724707661126,0.50684018,63090.0,63089.0,0.01059271]
[1724707661542,0.50684018,63090.0,63089.0,0.00759271]
[1724707662196,0.50684934,63090.0,63089.0,0.00759271]
[1724707662401,0.50684934,63090.0,63089.0,0.01059271]
[1724707663591,0.50684934,63090.0,63089.0,0.00759271]
[1724707663794,0.50684934,63090.0,63089.0,0.01059271]
[1724707664624,0.50665862,63090.0,63089.0,0.01059271]
[1724707665740,0.48031928,63090.0,63089.0,0.01059271]
[1724707665949,0.50666415,63090.0,63089.0,0.01059271]
[1724707666554,1.14067815,63090.0,63089.0,0.00759271]
[1724707666799,0.82367115,63090.0,63089.0,0.00759271]
[1724707667209,0.83596277,63090.0,63089.0,0.00759271]
[1724707672562,0.83596277,63090.0,63089.0,0.000823]
[1724707678164,0.94730466,63090.0,63089.0,0.000823]
[1724707678499,0.94730123,63090.0,63089.0,0.000823]
[1724707682929,0.94820653,63090.0,63089.0,0.000823]
[1724707684025,0.90957347,63090.0,63089.0,0.000823]
[1724707684255,0.94820309,63090.0,63089.0,0.000823]
[1724707684472,0.948203,63090.0,63089.0,0.000823]
[1724707685796,1.29983333,63090.0,63089.0,0.000823]
[1724707686351,1.61684033,63090.0,63089.0,0.000823]
[1724707686548,1.29983333,63090.0,63089.0,0.000823]
[1724707687353,1.61684033,63090.0,63089.0,0.000823]
[1724707690134,1.29983333,63090.0,63089.0,0.000823]
[1724707690694,1.61684033,63090.0,63089.0,0.000823]
[1724707691279,1.61685998,63090.0,63089.0,0.000823]
[1724707691877,1.29985298,63090.0,63089.0,0.000823]
[1724707692310,1.61685998,63090.0,63089.0,0.000823]
[1724707692904,0.87150409,63090.0,63089.0,0.000823]
[1724707693116,0.03224456,63090.0,63089.0,0.000823]
[1724707693317,0.03224456,63090.0,63089.0,0.3168965]
[1724707693532,0.01761159,63090.0,63089.0,0.2658905]
[1724707693738,0.01761159,63090.0,63089.0,0.4243965]
[1724707693941,0.0059053,63090.0,63089.0,0.4243965]
[1724707694141,0.02052923,63090.0,63089.0,0.4243965]
[1724707694346,0.02052923,63090.0,63089.0,0.7414085]
[1724707694547,0.02052923,63090.0,63089.0,0.4243965]
[1724707694826,0.05947318,63090.0,63089.0,0.4243965]
[1724707694999,0.04477487,63090.0,63089.0,0.4243965]
[1724707695201,0.01752822,63090.0,63089.0,0.4243965]
[1724707695401,0.01752822,63090.0,63089.0,0.7424085]
[1724707695582,0.01752822,63090.0,63089.0,1.0584205]
[1724707695786,0.01752822,63090.0,63089.0,1.0594205]
[1724707696194,0.01552822,63090.0,63089.0,1.0594205]
[1724707697228,0.01552822,63090.0,63089.0,1.0584205]
[1724707697588,0.01552822,63090.0,63089.0,1.0594205]
[1724707698295,0.0009053,63090.0,63089.0,1.0604205]
[1724707698776,0.0009053,63090.0,63089.0,1.0644205]
[1724707698957,0.0009053,63090.0,63089.0,1.21859851]
[1724707699157,0.0009053,63090.0,63089.0,1.22359851]
[1724707700396,0.01553482,63090.0,63089.0,1.22359851]
[1724707702473,0.0009053,63090.0,63089.0,1.22359851]
[1724707703580,0.0009053,63090.0,63089.0,1.56361051]
[1724707708142,0.04668459,63103.0,63102.0,0.1252]
[1724707708353,0.0009053,63104.0,63102.0,0.1252]
[1724707708354,0.0009053,63104.0,63103.0,1.039455]
[1724707708550,0.0009053,63104.0,63103.0,1.82951701]
[1724707708754,0.0009053,63104.0,63103.0,1.92951701]
[1724707710180,0.0009053,63104.0,63103.0,1.94351701]
[1724707710764,0.0009053,63107.0,63106.0,1.76161289]
[1724707710980,0.0009053,63107.0,63106.0,2.09270811]
[1724707711331,0.0009053,63120.0,63119.0,1.332113]
[1724707711467,0.0009053,63120.0,63119.0,1.6226329]
[1724707712512,0.0009053,63120.0,63119.0,1.6276329]
[1724707713776,0.0009053,63120.0,63119.0,1.6286329]
[1724707714028,0.0009053,63120.0,63119.0,1.9816614]
[1724707714236,0.0009053,63120.0,63119.0,2.0776614]
[1724707714479,0.0009053,63120.0,63119.0,2.0826614]
[1724707714929,0.0009053,63120.0,63119.0,2.0926614]
[1724707715278,0.0009053,63120.0,63119.0,2.0726614]
[1724707715484,0.0009053,63120.0,63119.0,2.1292116]
[1724707716609,0.0009053,63120.0,63119.0,2.146938]
[1724707717029,0.0009053,63120.0,63119.0,2.03559611]
[1724707717190,0.0009053,63120.0,63119.0,1.4436658]
[1724707717389,0.0009053,63120.0,63119.0,1.7605268]
[1724707718556,0.0009053,63120.0,63119.0,1.7835268]
[1724707722503,0.0009053,63120.0,63119.0,1.20712391]
[1724707722630,0.0009053,63120.0,63119.0,0.47550191]
[1724707723109,0.0009053,63120.0,63119.0,0.79236291]
[1724707724278,0.0009053,63120.0,63119.0,1.10922391]
[1724707729015,0.0009053,63120.0,63119.0,0.79236291]
[1724707729423,0.0009053,63120.0,63119.0,1.10922391]
[1724707736966,0.0009053,63120.0,63119.0,1.42608491]
[1724707737330,0.01554032,63120.0,63119.0,1.10922391]
[1724707741043,0.0009053,63120.0,63119.0,1.10922391]
[1724707741251,0.01554006,63120.0,63119.0,1.10922391]
[1724707741456,0.0009053,63120.0,63119.0,1.10922391]
[1724707741715,0.01554006,63120.0,63119.0,1.10922391]
[1724707744584,0.01553544,63120.0,63119.0,1.10922391]
[1724707750658,0.0009053,63120.0,63119.0,1.10922391]
[1724707751065,0.01553713,63120.0,63119.0,1.10922391]
[1724707751490,0.03016896,63120.0,63119.0,1.10922391]
[1724707753767,0.01553713,63120.0,63119.0,1.10922391]
[1724707754143,0.03016828,63120.0,63119.0,1.10922391]
[1724707754717,0.01553713,63120.0,63119.0,1.10922391]
[1724707754896,0.03016831,63120.0,63119.0,1.10922391]
[1724707755662,0.01553648,63120.0,63119.0,1.10922391]
[1724707757074,0.0009053,63120.0,63119.0,1.10922391]
[1724707757477,0.01553648,63120.0,63119.0,1.10922391]
[1724707759485,0.02724126,63120.0,63119.0,1.10922391]
[1724707760479,0.0009053,63120.0,63119.0,1.10922391]
[1724707760814,0.02724092,63120.0,63119.0,1.10922391]
[1724707760998,0.04187179,63120.0,63119.0,1.10922391]
[1724707761641,0.02724089,63120.0,63119.0,1.10922391]
[1724707762703,0.02724089,63120.0,63119.0,0.0287264]
[1724707762904,0.02724089,63120.0,63119.0,0.1871564]
[1724707763110,0.07379399,63120.0,63119.0,0.1871564]
[1724707763306,0.02724089,63120.0,63119.0,0.1871564]
[1724707763904,0.0591573,63120.0,63119.0,0.1871564]
[1724707764089,0.07378094,63120.0,63119.0,0.2197339]
[1724707764299,0.02722784,63120.0,63119.0,0.2197339]
[1724707764501,0.02722784,63120.0,63119.0,0.2267339]
[1724707769677,0.02722784,63120.0,63119.0,0.0683039]
[1724707770249,0.0126042,63120.0,63119.0,0.0683039]
[1724707770425,0.02723409,63120.0,63119.0,0.0683039]
[1724707770625,0.02723409,63120.0,63119.0,0.2267339]
[1724707771125,0.02723409,63120.0,63119.0,0.0683039]
[1724707771347,0.65499385,63120.0,63119.0,0.007]
[1724707771527,0.92507409,63120.0,63119.0,0.007]
[1724707771735,0.99523774,63120.0,63119.0,0.007]
[1724707772144,1.1382233,63120.0,63119.0,0.007]
[1724707772974,1.40162634,63120.0,63119.0,0.007]
[1724707773167,0.792165,63118.0,63117.0,0.00019072]
[1724707773379,1.24319522,63118.0,63117.0,0.00019072]
[1724707773578,1.25782218,63118.0,63117.0,0.00019072]
[1724707774469,1.25782218,63118.0,63117.0,0.00119072]
[1724707775110,0.90084886,63118.0,63117.0,0.00119072]
[1724707775333,0.83077642,63118.0,63117.0,0.00119072]
[1724707775550,0.90085167,63118.0,63117.0,0.00119072]
[1724707775734,1.01219356,63118.0,63117.0,0.00119072]
[1724707776611,1.01219691,63118.0,63117.0,0.00119072]
[1724707777278,0.94212166,63118.0,63117.0,0.00119072]
[1724707778030,1.25898766,63118.0,63117.0,0.00119072]
[1724707778680,1.32906291,63118.0,63117.0,0.00119072]
[1724707779344,1.45076291,63118.0,63117.0,0.00119072]
[1724707779480,1.80476028,63118.0,63117.0,0.00119072]
[1724707779680,1.71199674,63118.0,63117.0,0.00119072]
[1724707780106,1.45070353,63118.0,63117.0,0.00019072]
[1724707780422,1.52072034,63118.0,63117.0,0.00019072]
[1724707780571,1.52172034,63118.0,63117.0,0.00219072]
[1724707780761,1.45470352,63118.0,63117.0,0.00219072]
[1724707780998,1.45370352,63118.0,63117.0,0.00119072]
[1724707781343,1.45470352,63118.0,63117.0,0.00219072]
[1724707781532,1.45470368,63118.0,63117.0,0.00219072]
[1724707781871,2.28233515,63118.0,63117.0,0.00219072]
[1724707782395,2.1889794,63118.0,63117.0,0.00219072]
[1724707782614,2.2951794,63118.0,63117.0,0.00219072]
[1724707782905,0.792292,63108.0,63107.0,0.000824]
[1724707783077,1.41059039,63108.0,63107.0,0.000824]
[1724707783314,1.37622147,63108.0,63107.0,0.000824]
[1724707783853,1.37621953,63108.0,63107.0,0.000824]
[1724707784251,1.37721953,63108.0,63107.0,0.000824]
[1724707784473,1.36693472,63108.0,63107.0,0.000824]
[1724707785497,1.37921802,63108.0,63107.0,0.000824]
[1724707786489,1.37921771,63108.0,63107.0,0.000824]
[1724707786617,1.36693449,63108.0,63107.0,0.000824]
[1724707786819,1.37921764,63108.0,63107.0,0.000824]
[1724707789119,1.37821764,63108.0,63107.0,0.000824]
[1724707789321,1.53439565,63108.0,63107.0,0.000824]
[1724707789526,1.49578701,63108.0,63107.0,0.001824]
[1724707789722,1.54020124,63108.0,63107.0,0.002824]
[1724707792847,1.52791891,63108.0,63107.0,0.002824]
[1724707793288,1.54020101,63108.0,63107.0,0.002824]
[1724707795380,1.85711801,63108.0,63107.0,0.002824]
[1724707796003,1.85711443,63108.0,63107.0,0.002824]
[1724707798751,1.85711443,63108.0,63107.0,0.052824]
[1724707799578,1.8571124,63108.0,63107.0,0.052824]
[1724707800527,2.05975245,63108.0,63107.0,0.052824]
[1724707800820,2.05975245,63108.0,63094.0,0.04930509]
[1724707800821,0.792455,63095.0,63094.0,0.04930509]
[1724707801022,0.81877201,63095.0,63094.0,0.04930509]
[1724707801229,0.47551,63090.0,63089.0,0.126723]
[1724707801472,0.50182701,63090.0,63089.0,0.126723]
[1724707801673,0.50182701,63090.0,63089.0,0.000823]
[1724707801674,0.81883401,63090.0,63089.0,0.000823]
[1724707802291,1.2471829,63090.0,63089.0,0.000823]
[1724707802468,1.86114564,63090.0,63089.0,0.000823]
[1724707803080,1.9076563,63090.0,63089.0,0.000823]
[1724707803317,1.89603465,63090.0,63089.0,0.000823]
[1724707803566,1.86314073,63090.0,63089.0,0.000823]
[1724707803770,2.45217941,63090.0,63089.0,0.001823]
[1724707804012,2.53630862,63090.0,63089.0,0.001823]
[1724707804210,1.240059,63088.0,63087.0,0.000823]
[1724707804419,2.26113881,63088.0,63087.0,0.000823]
[1724707804621,2.33078832,63088.0,63087.0,0.000823]
[1724707805191,2.69692469,63088.0,63087.0,0.000823]
[1724707805390,2.40090166,63088.0,63087.0,0.000823]
[1724707805608,2.41551676,63088.0,63087.0,0.000823]
[1724707805928,2.39165655,63088.0,63087.0,0.000823]
[1724707806064,2.33603963,63088.0,63087.0,0.001823]
[1724707806264,2.35876255,63088.0,63087.0,0.001823]
[1724707806486,2.28913881,63088.0,63087.0,0.001823]
[1724707806725,2.33553209,63088.0,63087.0,0.001823]
[1724707807503,2.28914092,63088.0,63087.0,0.001823]
[1724707807703,2.4452726,63088.0,63087.0,0.001823]
[1724707807905,1.98469003,63088.0,63087.0,0.001823]
[1724707808106,2.1424252,63088.0,63087.0,0.001823]
[1724707808696,2.09603192,63088.0,63087.0,0.001823]
[1724707809180,2.42532591,63088.0,63087.0,0.001823]
[1724707810129,2.47169047,63088.0,63087.0,0.001823]
[1724707810343,2.62782215,63088.0,63087.0,0.001823]
[1724707810583,2.5921806,63088.0,63087.0,0.001823]
[1724707810797,2.60446202,63088.0,63087.0,0.080363]
[1724707810963,2.60446202,63088.0,63087.0,0.07746233]
[1724707811377,2.44833034,63088.0,63087.0,0.07746233]
[1724707812305,0.90412389,63069.0,63068.0,0.00822]
[1724707812508,0.58701089,63069.0,63068.0,0.00822]
[1724707814805,0.59301089,63069.0,63068.0,0.00822]
[1724707817720,0.59301089,63069.0,63068.0,0.01205906]
[1724707817875,0.59301089,63069.0,63068.0,0.03529497]
[1724707819532,0.91012389,63069.0,63068.0,0.03529497]
[1724707819839,0.91012389,63069.0,63068.0,0.03145591]
[1724707820033,0.91012389,63069.0,63068.0,0.00822]
[1724707820264,0.91012389,63069.0,63068.0,0.01205906]
[1724707820483,0.91012389,63069.0,63068.0,0.00822]
[1724707823466,0.92182956,63069.0,63068.0,0.00822]
[1724707829058,0.91012389,63069.0,63068.0,0.00822]
[1724707829263,0.921837,63069.0,63068.0,0.00822]
[1724707829619,0.9341353,63069.0,63068.0,0.00822]
[1724707830188,0.9341353,63069.0,63068.0,0.031072]
[1724707830396,0.9341353,63069.0,63068.0,0.03491691]
[1724707830573,0.9341353,63069.0,63068.0,0.01206491]
[1724707830778,0.9341353,63069.0,63068.0,0.00822]
[1724707838948,0.93413782,63069.0,63068.0,0.00822]
[1724707839082,0.81049511,63069.0,63068.0,0.00822]
[1724707839300,0.93413798,63069.0,63068.0,0.00822]
[1724707844927,0.9341461,63069.0,63068.0,0.00822]
[1724707845151,0.9808824,63069.0,63068.0,0.00822]
[1724707847399,1.21852549,63069.0,63068.0,0.00822]
[1724707847607,1.31199809,63069.0,63068.0,0.00822]
[1724707848341,1.21853413,63069.0,63068.0,0.00822]
[1724707848549,1.28797588,63069.0,63068.0,0.00822]
[1724707848729,1.33537765,63069.0,63068.0,0.00822]
[1724707849509,1.2185369,63069.0,63068.0,0.00822]
[1724707850256,0.475699,63065.0,63064.0,0.185477]
[1724707850376,0.57004365,63065.0,63064.0,0.185477]
[1724707850575,0.57004365,63065.0,63064.0,0.18933264]
[1724707852845,0.57004365,63065.0,63064.0,0.19033264]
[1724707854340,0.5700353,63065.0,63064.0,0.19033264]
[1724707858226,0.54600168,63065.0,63064.0,0.19033264]
[1724707858425,0.57003228,63065.0,63064.0,0.19033264]
[1724707859260,0.57004855,63065.0,63064.0,0.186477]
[1724707859456,0.57004855,63065.0,63064.0,0.18978779]
[1724707860253,0.78486152,63065.0,63064.0,0.18978779]
[1724707861158,0.78486152,63065.0,63064.0,0.19061179]
[1724707861359,0.4997296,63065.0,63064.0,0.1919361]
[1724707861561,0.4997296,63065.0,63064.0,0.19061179]
[1724707863398,0.475699,63065.0,63064.0,0.19061179]
[1724707863604,0.49971075,63065.0,63064.0,0.187301]
[1724707863806,0.49971075,63065.0,63064.0,0.19061422]
[1724707864904,0.49971075,63065.0,63064.0,0.187301]
[1724707865320,0.49971075,63065.0,63064.0,0.19061422]
[1724707866669,0.49970891,63065.0,63064.0,0.19061422]
[1724707866822,0.475699,63065.0,63064.0,0.19061422]
[1724707867023,0.17027838,63065.0,63064.0,0.19061422]
[1724707867427,0.49970882,63065.0,63064.0,0.19061422]
[1724707867830,0.49970882,63065.0,63064.0,0.1919395]
[1724707868235,0.49970882,63065.0,63064.0,0.19061422]
[1724707869912,0.49970856,63065.0,63064.0,0.19061422]
[1724707871173,0.87842058,63065.0,63064.0,0.19061422]
[1724707872227,0.56128758,63065.0,63064.0,0.19061422]
[1724707872909,0.54899027,63065.0,63064.0,0.19061422]
[1724707873114,0.56128759,63065.0,63064.0,0.19061422]
[1724707873498,0.56219399,63065.0,63064.0,0.19061422]
[1724707873696,0.87932699,63065.0,63064.0,0.19061422]
[1724707874741,0.87913621,63065.0,63064.0,0.19061422]
[1724707875952,0.56200321,63065.0,63064.0,0.25823887]
[1724707876157,0.55029096,63065.0,63064.0,0.25823887]
[1724707876332,0.53799364,63065.0,63064.0,0.25823887]
[1724707876539,0.56200324,63065.0,63064.0,0.25823887]
[1724707877883,0.54970591,63065.0,63064.0,0.19061422]
[1724707878047,0.85512664,63065.0,63064.0,0.19061422]
[1724707878530,0.86683899,63065.0,63064.0,0.19061422]
[1724707878823,1.41970652,63065.0,63064.0,0.00646402]
[1724707879012,1.77389739,63065.0,63064.0,0.00646402]
[1724707879241,1.91431156,63065.0,63064.0,0.001824]
[1724707879433,1.56012069,63065.0,63064.0,0.001824]
[1724707879645,1.57241623,63065.0,63064.0,0.000824]
[1724707880176,1.44300206,63065.0,63064.0,0.000824]
[1724707880813,1.43070465,63065.0,63064.0,0.000824]
[1724707880980,1.43870465,63065.0,63064.0,0.000824]
[1724707881425,1.41899417,63065.0,63064.0,0.000824]
[1724707881838,1.42699417,63065.0,63064.0,0.000824]
[1724707882917,1.4510007,63065.0,63064.0,0.000824]
[1724707884332,1.43870502,63065.0,63064.0,0.000824]
[1724707884529,1.45100123,63065.0,63064.0,0.000824]
[1724707884925,1.73187924,63065.0,63064.0,0.000824]
[1724707885126,2.04901224,63065.0,63064.0,0.000824]
[1724707885887,2.06961963,63065.0,63064.0,0.000824]
[1724707886091,2.03671603,63065.0,63064.0,0.000824]
[1724707886294,2.06961756,63065.0,63064.0,0.000824]
[1724707886533,2.05732015,63065.0,63064.0,0.000824]
[1724707886936,2.03485415,63065.0,63064.0,0.000824]
[1724707887138,2.43828316,63065.0,63064.0,0.000824]
[1724707887340,2.28215148,63065.0,63064.0,0.000824]
[1724707887549,2.56344957,63065.0,63064.0,0.000824]
[1724707887697,2.57515731,63065.0,63064.0,0.000824]
[1724707887899,2.55454992,63065.0,63064.0,0.000824]
[1724707888104,2.55455046,63065.0,63064.0,0.000824]
[1724707889368,2.47282488,63065.0,63064.0,0.000824]
[1724707889914,2.3561032,63065.0,63064.0,0.000824]
[1724707890967,2.37671001,63065.0,63064.0,0.000824]
[1724707891166,2.36500168,63065.0,63064.0,0.000824]
[1724707891370,2.37671021,63065.0,63064.0,0.000824]
[1724707891996,2.35329308,63065.0,63064.0,0.000824]
[1724707892188,2.37671003,63065.0,63064.0,0.000824]
[1724707893956,2.37671005,63065.0,63064.0,0.000824]
[1724707894319,2.47866414,63065.0,63064.0,0.000824]
[1724707894457,2.37671005,63065.0,63064.0,0.000824]
[1724707896400,2.35232289,63065.0,63064.0,0.000824]
[1724707897274,2.35232378,63065.0,63064.0,0.000824]
[1724707900436,2.35232388,63065.0,63064.0,0.000824]
[1724707901684,2.66945688,63065.0,63064.0,0.000824]
[1724707901887,1.110175,63053.0,63052.0,0.1265]
[1724707902087,1.28954427,63053.0,63052.0,0.1265]
[1724707902687,1.33621461,63053.0,63052.0,0.1265]
[1724707903519,1.31279415,63053.0,63052.0,0.1265]
[1724707903747,1.34020958,63053.0,63052.0,0.1265]
[1724707903974,1.32850162,63053.0,63052.0,0.1265]
[1724707904187,1.37310811,63053.0,63052.0,0.1265]
[1724707904611,1.37310811,63053.0,63043.0,0.00824]
[1724707904612,0.793095,63044.0,63043.0,0.00824]
[1724707904820,1.26909089,63044.0,63043.0,0.00824]
[1724707905249,1.28969551,63044.0,63043.0,0.24094]
[1724707905866,1.29069551,63044.0,63043.0,0.24094]
[1724707906275,1.29169551,63044.0,63043.0,0.24094]
[1724707906681,1.29069551,63044.0,63043.0,0.24094]
[1724707906891,1.29769551,63044.0,63043.0,0.24094]
[1724707907098,1.27328033,63044.0,63043.0,0.24094]
[1724707907288,1.29669348,63044.0,63043.0,0.24094]
[1724707908029,1.30169348,63044.0,63043.0,0.24094]
[1724707910235,1.28108923,63044.0,63043.0,0.24094]
[1724707910441,1.30169433,63044.0,63043.0,0.24094]
[1724707917186,1.28940047,63044.0,63043.0,0.24094]
[1724707917320,1.30169287,63044.0,63043.0,0.24094]
[1724707917514,1.30169235,63044.0,63043.0,0.24094]
[1724707920104,1.28969235,63044.0,63043.0,0.24094]
[1724707920514,1.27227787,63044.0,63043.0,0.24094]
[1724707920716,1.30369065,63044.0,63043.0,0.24094]
[1724707922015,1.30368541,63044.0,63043.0,0.24094]
[1724707922866,1.30368541,63044.0,63043.0,0.00824]
[1724707923054,1.28027263,63044.0,63043.0,0.00824]
[1724707923258,1.26854818,63044.0,63043.0,0.00824]
[1724707923468,1.30364305,63044.0,63043.0,0.00824]
[1724707923674,1.29764305,63044.0,63043.0,0.00824]
[1724707923895,1.28964305,63044.0,63043.0,0.00824]
[1724707924121,1.36760103,63044.0,63043.0,0.00824]
[1724707924333,1.30864305,63044.0,63043.0,0.00824]
[1724707924968,1.37859457,63044.0,63043.0,0.00824]
[1724707925215,1.30864305,63044.0,63043.0,0.00824]
[1724707925383,1.37859219,63044.0,63043.0,0.00824]
[1724707926165,1.30864305,63044.0,63043.0,0.00824]
[1724707926385,1.33402907,63044.0,63043.0,0.00824]
[1724707926592,1.38808512,63044.0,63043.0,0.00824]
[1724707926827,1.40199968,63044.0,63043.0,0.00824]
[1724707926996,1.37860097,63044.0,63043.0,0.00824]
[1724707927371,1.37859543,63044.0,63043.0,0.00824]
[1724707927776,1.37859547,63044.0,63043.0,0.00824]
[1724707928216,1.30864337,63044.0,63043.0,0.00824]
[1724707929182,1.53618376,63044.0,63043.0,0.00824]
[1724707929499,1.30864337,63044.0,63043.0,0.00824]
[1724707929724,1.26407146,63044.0,63043.0,0.00824]
[1724707929835,1.30844998,63044.0,63043.0,0.00824]
[1724707930677,1.53602569,63044.0,63043.0,0.00824]
[1724707930872,1.53602569,63044.0,63043.0,0.035231]
[1724707931079,1.62929833,63044.0,63043.0,0.035231]
[1724707931443,1.62929855,63044.0,63043.0,0.035231]
[1724707931650,1.37842036,63044.0,63043.0,0.035231]
[1724707931857,1.35509766,63044.0,63043.0,0.035231]
[1724707931995,1.3084502,63044.0,63043.0,0.035231]
[1724707932378,1.35510284,63044.0,63043.0,0.035231]
[1724707932578,1.35510227,63044.0,63043.0,0.035231]
[1724707932841,1.3084502,63044.0,63043.0,0.035231]
[1724707933045,1.19710831,63044.0,63043.0,0.270631]
[1724707933274,1.12914215,63044.0,63043.0,0.270631]
[1724707933488,1.19711428,63044.0,63043.0,0.270631]
[1724707935499,1.19711428,63044.0,63043.0,0.24364]
[1724707936346,0.08697213,63044.0,63043.0,0.24364]
[1724707936682,0.08697281,63044.0,63043.0,0.24646293]
[1724707937060,0.08697307,63044.0,63043.0,0.40508393]
[1724707937261,0.08697307,63044.0,63043.0,0.24646293]
[1724707937464,0.08697307,63044.0,63043.0,0.32185668]
[1724707937684,0.04309765,63044.0,63043.0,0.90906257]
[1724707937893,0.007,63044.0,63043.0,1.22630557]
[1724707938301,0.012,63044.0,63043.0,1.22630557]
[1724707938915,0.007,63044.0,63043.0,1.22630557]
[1724707939277,0.158594,63054.0,63051.0,0.2338]
[1724707939436,0.158594,63054.0,63052.0,0.03110096]
[1724707939437,0.03510455,63053.0,63052.0,0.03110096]
[1724707939639,0.19370055,63053.0,63052.0,0.03110096]
[1724707939844,0.19370055,63053.0,63052.0,0.03391521]
[1724707940057,0.19370055,63053.0,63052.0,0.26771521]
[1724707940845,0.04668132,63061.0,63052.0,0.26771521]
[1724707940846,0.0009064,63065.0,63063.0,0.392371]
[1724707941047,0.0009064,63065.0,63063.0,1.18283501]
[1724707941185,0.0009064,63065.0,63063.0,1.18562586]
[1724707941591,0.0009064,63065.0,63063.0,1.22700046]
[1724707942221,0.0019064,63064.0,63063.0,1.22800046]
[1724707942462,0.0019064,63064.0,63063.0,1.23524809]
[1724707942657,0.0009064,63064.0,63063.0,1.23424809]
[1724707942812,0.0059064,63064.0,63063.0,1.23424809]
[1724707943061,0.0009064,63064.0,63063.0,1.23424809]
[1724707943520,0.0019064,63064.0,63063.0,1.23424809]
[1724707943658,0.0019064,63064.0,63063.0,1.27562269]
[1724707944061,0.0029064,63064.0,63063.0,1.27762269]
[1724707944493,0.0019064,63064.0,63063.0,1.27562269]
[1724707944894,0.0029064,63064.0,63063.0,1.27862269]
[1724707945499,0.0029064,63064.0,63063.0,1.30162269]
[1724707946340,0.0029064,63064.0,63063.0,1.26024809]
[1724707946529,0.0029064,63064.0,63063.0,0.28821308]
[1724707947297,0.1614754,63064.0,63063.0,0.28821308]
[1724707947521,0.1604754,63064.0,63063.0,0.28521308]
[1724707947897,0.1604754,63064.0,63063.0,0.28721308]
[1724707948284,0.1604754,63064.0,63063.0,0.28521308]
[1724707948721,0.0009064,63064.0,63063.0,0.28721308]
[1724707948935,0.0009064,63064.0,63063.0,0.91910509]
[1724707951465,0.0009064,63064.0,63063.0,1.23624809]
[1724707951674,0.0009064,63064.0,63063.0,1.57639109]
[1724707952567,0.0009064,63064.0,63063.0,1.61538069]
[1724707952750,0.0009064,63064.0,63063.0,1.61638069]
[1724707953521,0.0009064,63064.0,63063.0,1.71638069]
[1724707953924,0.0009064,63064.0,63063.0,2.03073284]
[1724707954607,0.0009064,63065.0,63064.0,1.80945249]
[1724707954800,0.0009064,63065.0,63064.0,2.11973146]
[1724707955372,0.1,63090.0,63086.0,0.389513]
[1724707955579,0.1,63090.0,63086.0,0.81788189]
[1724707956424,0.0139064,63087.0,63086.0,0.81788189]